bitfinex-derivatives/quotes_ETHF0:USTF0_20250904
["timestamp","ask_amount","ask_price","bid_price","bid_amount"]
[1756991127639,2.8226,4410.5,4410.4,6.87389386]
[1756991127947,3.7778,4410.5,4410.4,6.87389386]
[1756991128240,4.3831,4410.5,4410.4,4.49849386]
[1756991128639,4.3831,4410.5,4410.4,5.92719386]
[1756991128837,3.7778,4410.5,4410.4,6.87389386]
[1756991129038,0.408,4410.5,4410.4,6.87389386]
[1756991131145,1.421,4411.2,4411.0,2.5535]
[1756991131345,1.82893,4411.2,4411.1,5.00300382]
[1756991131640,3.77773,4411.2,4411.1,3.57430382]
[1756991131830,3.77773,4411.2,4410.7,1.39990382]
[1756991131831,0.40797,4410.8,4410.7,1.39990382]
[1756991132036,3.77777,4410.8,4410.7,1.70460593]
[1756991132542,3.77777,4410.8,4410.7,2.69930593]
[1756991132745,3.77777,4410.8,4410.7,2.70901418]
[1756991133243,3.77777,4410.8,4410.7,2.71872243]
[1756991134241,3.77777,4410.8,4410.7,0.32411861]
[1756991135436,3.77777,4410.8,4410.7,1.32068848]
[1756991135640,3.77777,4410.8,4410.7,3.69608848]
[1756991136036,1.40157,4410.8,4410.7,3.69608848]
[1756991136346,0.40797,4410.8,4410.7,3.7166309]
[1756991136547,3.77777,4410.8,4410.7,5.11653472]
[1756991137048,3.77777,4410.8,4410.7,3.68783472]
[1756991137537,2.82257,4410.8,4410.7,5.11653472]
[1756991137847,0.40797,4410.8,4410.7,5.11653472]
[1756991139944,0.40797,4410.8,4410.7,5.12186066]
[1756991141152,3.2078,4411.4,4411.2,1.9414]
[1756991141439,6.98552,4411.4,4411.3,2.27852102]
[1756991141742,3.77772,4411.4,4411.3,5.11826314]
[1756991141935,3.77772,4411.4,4411.3,5.1441315]
[1756991142548,2.82252,4411.4,4411.3,5.1441315]
[1756991142950,1.40152,4411.4,4411.3,5.1441315]
[1756991143349,1.40152,4411.4,4411.3,5.15283033]
[1756991143644,1.40152,4411.4,4411.3,5.15399339]
[1756991143844,1.40152,4411.4,4411.3,5.16385528]
[1756991144239,1.40152,4411.4,4411.3,5.12696197]
[1756991144445,1.40152,4411.4,4411.3,5.17371158]
[1756991145242,0.40792,4411.4,4411.3,5.17371158]
[1756991146752,0.40792,4411.4,4411.3,5.18356788]
[1756991147147,0.40792,4411.4,4411.3,5.19342418]
[1756991147749,0.40792,4411.4,4411.3,5.20328048]
[1756991147945,0.40792,4411.4,4411.3,7.2256876]
[1756991148153,6.7452,4412.3,4412.2,0.9809]
[1756991148452,6.7452,4412.3,4412.2,4.26636197]
[1756991148638,6.7452,4412.3,4412.2,4.34268048]
[1756991148844,6.7452,4412.3,4412.2,5.28918048]
[1756991149045,7.15303,4412.3,4412.2,3.76058048]
[1756991149546,0.40775,4413.3,4412.2,11.19502048]
[1756991149745,3.67157312,4413.7,4413.6,0.9236]
[1756991149946,3.26385312,4413.7,4413.6,3.50400382]
[1756991150248,1.5087,4413.7,4413.6,6.20336639]
[1756991150449,1.5087,4413.9,4413.8,1.9274]
[1756991150750,2.5397,4413.9,4413.8,6.60008403]
[1756991150950,2.5397,4413.9,4413.8,5.74928403]
[1756991151153,2.5397,4413.9,4413.8,5.89517726]
[1756991151948,2.5397,4413.9,4413.8,5.90421185]
[1756991152449,2.6059,4414.5,4414.4,3.456]
[1756991152646,2.6059,4414.5,4414.4,8.60046934]
[1756991152952,2.6059,4414.5,4414.4,7.30311567]
[1756991153155,3.01353,4414.5,4414.4,7.52794852]
[1756991153347,3.01353,4414.5,4414.4,9.05654852]
[1756991153751,0.40763,4414.5,4414.4,9.05654852]
[1756991153948,1.43863,4414.5,4414.4,9.05654852]
[1756991154355,3.94503,4414.5,4414.4,9.05654852]
[1756991154857,0.40763,4414.5,4414.4,9.05654852]
[1756991156956,0.40763,4414.5,4414.4,8.82254852]
[1756991157255,0.40763,4414.5,4414.4,9.05654852]
[1756991157558,0.40763,4414.5,4414.4,9.06823519]
[1756991157954,1.43863,4414.5,4414.4,9.06823519]
[1756991158252,4.52223,4414.5,4414.4,8.83423519]
[1756991158451,4.52223,4414.5,4414.4,8.9016207]
[1756991158652,4.52223,4414.5,4414.4,9.07992186]
[1756991159146,3.94503,4414.5,4414.4,9.08749444]
[1756991159351,3.94503,4414.5,4414.4,9.09160853]
[1756991159552,3.94503,4414.5,4414.4,8.81194286]
[1756991160261,0.40763,4414.5,4414.4,9.93218101]
[1756991161257,0.40758,4415.1,4415.0,0.6259]
[1756991161462,1.01891,4415.3,4415.0,5.73890367]
[1756991161662,1.01888,4415.5,4415.3,1.5286]
[1756991161855,1.031,4415.5,4415.4,5.11300367]
[1756991162249,1.031,4415.5,4415.4,5.37931001]
[1756991162557,2.0287,4415.7,4415.6,3.456]
[1756991162754,2.0287,4415.7,4415.6,0.53452914]
[1756991162755,6.25517,4415.7,4415.6,0.53452914]
[1756991162958,6.25517,4415.7,4415.6,0.234]
[1756991163154,4.0,4415.7,4415.2,1.12023815]
[1756991163354,1.8858,4415.0,4414.9,3.2078]
[1756991163561,1.8858,4415.0,4414.9,3.4418]
[1756991163753,1.4368,4415.0,4414.9,5.9513]
[1756991163958,1.4368,4415.0,4414.9,6.8978]
[1756991164160,1.4368,4415.0,4414.9,5.9513]
[1756991165163,1.4368,4415.0,4414.9,6.8978]
[1756991165357,0.7184,4415.0,4414.9,6.8978]
[1756991165559,0.7184,4415.0,4414.9,10.87836464]
[1756991165961,1.4368,4415.0,4414.9,10.89709936]
[1756991166957,0.449,4415.9,4415.1,1.5286]
[1756991167152,0.7184,4415.2,4415.1,1.5286]
[1756991167359,1.8858,4415.2,4415.1,1.7626]
[1756991167560,1.8858,4415.2,4415.1,1.79070318]
[1756991167757,5.8858,4415.2,4415.1,0.02810318]
[1756991167955,5.8858,4415.2,4415.1,0.26494592]
[1756991168867,5.8858,4415.2,4415.1,0.234]
[1756991168868,6.29337,4415.2,4415.1,0.234]
[1756991169068,1.84439,4415.0,4414.9,4.7364]
[1756991169269,1.84439,4415.0,4414.9,4.9704]
[1756991169857,2.29339,4415.0,4414.9,0.234]
[1756991170065,1.8858,4414.7,4414.6,1.5286]
[1756991170261,1.4368,4414.7,4414.6,0.234]
[1756991170473,1.8858,4414.7,4414.6,0.234]
[1756991170864,1.8858,4414.7,4414.4,3.43263285]
[1756991171170,3.2078,4415.1,4414.5,1.7626]
[1756991171171,1.8858,4414.6,4414.5,1.7626]
[1756991171567,1.8858,4414.6,4414.5,0.234]
[1756991172272,1.8858,4414.6,4414.5,2.2694]
[1756991172466,1.4368,4414.6,4414.5,3.2864]
[1756991173064,1.8815,4414.6,4414.5,1.6587]
[1756991173667,1.8815,4414.6,4414.5,1.67009065]
[1756991174171,1.4368,4414.6,4414.5,2.29217538]
[1756991174372,3.2078,4415.1,4414.5,2.29217538]
[1756991174373,3.2078,4415.1,4414.5,4.28747538]
[1756991174565,4.631,4415.1,4415.0,3.0524]
[1756991174765,5.0757,4415.1,4415.0,3.2854]
[1756991174961,5.0757,4415.1,4415.0,1.97156368]
[1756991175366,5.0757,4415.1,4415.0,1.99433906]
[1756991175773,9.0757,4415.1,4415.0,0.57781552]
[1756991176160,4.631,4415.1,4415.0,4.60851552]
[1756991176562,4.631,4415.1,4415.0,3.65080552]
[1756991176563,5.03858,4415.1,4415.0,3.65080552]
[1756991176767,5.03858,4415.1,4415.0,3.14229311]
[1756991176968,3.29968,4415.1,4415.0,0.01615759]
[1756991177169,6.50748,4415.1,4415.0,0.01615759]
[1756991177472,6.50748,4415.1,4415.0,0.24915759]
[1756991177869,6.50748,4415.1,4415.0,0.25878946]
[1756991179273,6.50748,4415.1,4415.0,1.27578946]
[1756991179474,6.50748,4415.1,4415.0,2.70048946]
[1756991179872,6.50748,4415.1,4415.0,2.71012133]
[1756991180175,6.50748,4415.1,4415.0,0.26842133]
[1756991180367,11.04838,4415.1,4415.0,0.03542133]
[1756991180569,0.3956,4415.0,4414.7,0.233]
[1756991180774,3.433,4414.0,4413.9,3.2078]
[1756991181074,3.433,4414.0,4413.9,5.8825]
[1756991181275,3.433,4414.0,4413.9,6.10867195]
[1756991181778,1.9641,4414.0,4413.9,7.08697195]
[1756991181980,2.5413,4414.0,4413.4,4.6325]
[1756991182175,3.433,4413.5,4413.4,3.2078]
[1756991182379,6.6408,4413.5,4413.4,0.233]
[1756991182778,5.1719,4413.5,4413.0,2.0354]
[1756991182981,1.9641,4413.2,4413.1,1.6577]
[1756991183680,1.9641,4413.2,4413.1,2.6747]
[1756991183989,1.9641,4413.2,4413.1,3.33013613]
[1756991184282,3.433,4413.2,4413.1,0.25376945]
[1756991184481,3.433,4413.2,4413.1,0.26490707]
[1756991186092,3.433,4413.2,4413.1,0.27604146]
[1756991186295,3.433,4413.2,4413.1,1.29304146]
[1756991186494,3.433,4413.2,4413.1,0.05417585]
[1756991186690,3.433,4413.2,4413.1,0.28717585]
[1756991187189,3.433,4413.2,4413.1,0.29831024]
[1756991187595,3.433,4413.2,4413.1,1.32644463]
[1756991187993,3.433,4413.2,4413.1,3.74057902]
[1756991188194,3.433,4413.2,4413.1,2.31587902]
[1756991188395,3.433,4413.2,4413.1,1.33757902]
[1756991188695,3.433,4413.2,4413.1,3.75171341]
[1756991188998,0.40774,4413.3,4413.1,3.75171341]
[1756991188999,0.40774,4413.3,4413.2,3.42]
[1756991189295,1.41974,4413.3,4413.2,3.42]
[1756991189997,1.41974,4413.3,4413.2,3.5298478]
[1756991190293,1.01934,4413.5,4413.2,7.5298478]
[1756991190489,1.01922,4414.0,4413.8,1.4247]
[1756991190794,4.0485,4414.0,4413.4,3.2078]
[1756991191089,3.433,4413.8,4413.7,0.1098478]
[1756991191288,3.433,4413.8,4413.7,1.3598478]
[1756991191483,3.433,4413.8,4413.7,1.0317578]
[1756991192087,3.8407,4413.8,4413.7,1.0317578]
[1756991192287,3.8407,4413.8,4413.7,2.0100578]
[1756991192492,3.8407,4413.8,4413.7,1.0317578]
[1756991192691,3.8407,4413.8,4413.7,3.4347578]
[1756991193095,3.8407,4413.8,4413.7,2.0100578]
[1756991193491,3.8407,4413.8,4413.7,3.4347578]
[1756991193690,2.8886,4413.8,4413.7,3.4347578]
[1756991194389,3.8407,4413.8,4413.7,2.0100578]
[1756991194588,2.8886,4413.8,4413.7,3.4347578]
[1756991194793,1.8766,4413.8,4413.7,3.4347578]
[1756991194992,0.4077,4413.8,4413.7,3.4347578]
[1756991195594,3.8407,4413.8,4413.7,3.45441724]
[1756991195993,2.8886,4413.8,4413.7,3.45441724]
[1756991196194,0.4077,4413.8,4413.7,3.45441724]
[1756991197297,0.4077,4413.8,4413.7,3.46424696]
[1756991197802,0.4077,4413.8,4413.7,3.46570372]
[1756991198403,0.4077,4413.8,4413.7,3.48390289]
[1756991198598,2.8886,4413.8,4413.7,3.48390289]
[1756991198904,2.8886,4413.8,4413.7,4.61473726]
[1756991199105,2.8886,4413.8,4413.7,4.38173726]
[1756991199296,3.8407,4413.8,4413.7,4.39156286]
[1756991199607,3.8407,4413.8,4413.7,4.62456286]
[1756991200003,3.8407,4413.8,4413.7,2.96686286]
[1756991200200,3.8407,4413.8,4413.7,3.19986286]
[1756991200410,3.8407,4413.8,4413.7,4.62456286]
[1756991200902,3.8407,4413.8,4413.7,3.50355409]
[1756991201100,3.8407,4413.8,4413.7,4.62456286]
[1756991202306,3.8407,4413.8,4413.7,4.63554909]
[1756991202600,3.8407,4413.8,4413.7,2.41149129]
[1756991202794,3.8407,4413.8,4413.7,2.42247752]
[1756991202997,3.8407,4413.8,4413.7,4.97597752]
[1756991205511,3.8407,4413.8,4413.7,3.44357752]
[1756991205711,3.8407,4413.8,4413.7,0.05982283]
[1756991205909,3.8407,4413.8,4413.7,0.29282283]
[1756991207099,7.8407,4413.8,4413.7,0.07080161]
[1756991207413,4.1442,4413.0,4412.9,3.2078]
[1756991207800,12.47300877,4413.0,4412.7,0.233]
[1756991208001,3.14030877,4412.8,4412.7,0.233]
[1756991208205,4.69890877,4412.8,4412.7,0.01097878]
[1756991208610,4.69890877,4412.8,4412.7,0.01996714]
[1756991209610,2.5856,4411.5,4411.4,3.00010712]
[1756991209811,4.1442,4411.0,4410.9,4.1855]
[1756991210008,4.1442,4411.0,4410.9,0.233]
[1756991211104,7.352,4411.0,4410.9,0.233]
[1756991211311,8.47300877,4411.0,4410.9,0.233]
[1756991211518,11.352,4411.0,4410.9,0.233]
[1756991211706,11.352,4411.0,4410.0,1.5324]
[1756991211915,0.5663,4410.5,4410.1,0.233]
[1756991212206,1.5586,4410.1,4409.8,3.2078]
[1756991212413,3.5779,4410.1,4410.0,0.233]
[1756991214107,3.98594,4410.1,4410.0,0.46055065]
[1756991214412,3.98594,4410.1,4410.0,0.233]
[1756991214607,0.40804,4410.1,4410.0,4.3409]
[1756991215111,1.44484,4410.1,4410.0,4.3409]
[1756991215311,3.98594,4410.1,4410.0,3.99231732]
[1756991215514,0.40804,4410.1,4410.0,4.56901732]
[1756991215716,0.40804,4410.1,4410.0,4.58791955]
[1756991215917,0.40804,4410.1,4410.0,11.79571955]
[1756991216120,0.40804,4410.1,4410.0,11.80882073]
[1756991218118,1.44484,4410.1,4410.0,7.57582073]
[1756991218421,1.44484,4410.1,4410.0,3.46792073]
[1756991218422,3.98594,4410.1,4410.0,3.46792073]
[1756991218610,3.98594,4410.1,4410.0,0.49312073]
[1756991218810,3.98594,4410.1,4410.0,0.50121217]
[1756991219415,3.98594,4410.1,4410.0,0.50930361]
[1756991219820,3.98594,4410.1,4410.0,0.51739505]
[1756991220115,3.98594,4410.1,4410.0,3.02749505]
[1756991220313,0.40804,4410.1,4410.0,4.62529505]
[1756991220508,1.44484,4410.1,4410.0,4.62529505]
[1756991220919,3.98594,4410.1,4410.0,0.51739505]
[1756991221117,3.98594,4410.1,4410.0,0.28439505]
[1756991221421,3.98594,4410.1,4410.0,0.28927773]
[1756991221619,3.98594,4410.1,4410.0,7.73e-06]
[1756991221814,2.0193,4409.6,4409.5,1.20414299]
[1756991222020,3.5779,4409.4,4408.8,1.5324]
[1756991223218,3.5779,4409.4,4409.3,2.5101]
[1756991223522,1.0368,4409.4,4409.3,3.5312]
[1756991223822,1.0368,4409.1,4409.0,4.1079]
[1756991224014,2.5954,4409.1,4409.0,4.1079]
[1756991224708,3.5779,4409.1,4409.0,3.5312]
[1756991224914,3.5779,4409.1,4409.0,2.7431]
[1756991225109,3.5779,4409.1,4409.0,1.23126913]
[1756991225313,3.5779,4409.1,4409.0,0.25356913]
[1756991226015,3.5779,4409.1,4409.0,3.79725406]
[1756991226326,3.5779,4409.1,4409.0,4.37395406]
[1756991228525,3.5779,4409.1,4409.0,3.79725406]
[1756991229424,3.98603,4409.1,4409.0,3.79725406]
[1756991229923,0.40813,4409.1,4409.0,4.37395406]
[1756991230620,0.40813,4409.1,4409.0,4.38643899]
[1756991231328,0.40813,4409.1,4409.0,4.39892392]
[1756991232534,3.2078,4410.2,4409.5,0.6168]
[1756991232825,2.5898,4410.2,4410.1,3.4489]
[1756991233021,2.5898,4410.2,4410.1,3.6819]
[1756991233221,3.5988,4410.2,4410.1,3.73992392]
[1756991233427,3.5988,4410.2,4410.1,0.05802392]
[1756991233731,3.5988,4410.2,4410.1,0.29102392]
[1756991234222,3.5988,4410.2,4410.1,0.29964283]
[1756991234726,3.5988,4410.2,4410.1,2.77496174]
[1756991234921,3.5988,4410.2,4410.1,3.75716174]
[1756991235321,6.8066,4410.2,4410.1,3.75716174]
[1756991235526,6.8066,4410.2,4410.1,1.25336174]
[1756991236027,6.8066,4410.2,4410.1,3.75716174]
[1756991236224,0.1132,4410.4,4410.2,1.5216]
[1756991236420,0.1132,4410.4,4410.3,3.6819]
[1756991236630,1.5442,4410.7,4410.3,3.75716174]
[1756991236833,3.5988,4410.6,4410.5,1.06607398]
[1756991237029,3.5988,4410.6,4410.5,2.24417398]
[1756991237323,3.5988,4410.6,4410.5,3.76577398]
[1756991238927,3.5988,4410.6,4410.5,3.7743921]
[1756991239326,3.5988,4410.6,4410.5,3.78301022]
[1756991240230,3.321,4410.8,4410.5,4.39981022]
[1756991240436,4.3666,4410.8,4410.7,3.4489]
[1756991240731,6.8066,4410.8,4410.7,3.6819]
[1756991241124,6.8066,4410.8,4410.7,2.59230908]
[1756991241333,6.8066,4410.8,4410.7,0.67074908]
[1756991241535,6.8066,4410.8,4410.7,0.68278794]
[1756991242630,6.8066,4410.8,4410.7,0.35818794]
[1756991243436,6.8066,4410.8,4410.7,2.28548794]
[1756991243634,3.2078,4410.8,4410.7,7.74108794]
[1756991243832,3.2078,4410.8,4410.7,7.75309708]
[1756991244131,2.0546,4410.9,4410.7,0.13719708]
[1756991244438,2.0546,4410.9,4410.8,0.233]
[1756991244937,3.5988,4410.9,4410.8,0.37019708]
[1756991245331,3.5988,4410.9,4410.8,0.38220622]
[1756991245734,0.6088,4410.0,4409.8,3.2078]
[1756991245931,0.6088,4410.0,4409.3,1.4556]
[1756991245932,3.5988,4409.9,4409.3,1.4556]
[1756991246438,3.58679086,4409.1,4409.0,0.9451]
[1756991246628,3.58679086,4409.1,4409.0,1.9273]
[1756991246828,3.5988,4408.9,4408.8,0.22377818]
[1756991247029,3.5988,4408.9,4408.8,0.233]
[1756991247832,1.5442,4408.8,4408.5,3.2078]
[1756991248033,1.5442,4408.8,4408.0,1.5216]
[1756991248034,3.5988,4408.7,4408.6,0.233]
[1756991248233,3.5988,4408.7,4408.6,0.46404667]
[1756991248744,2.46284,4407.9,4407.8,3.68473]
[1756991248944,0.40826,4407.7,4407.6,31.289]
[1756991249136,0.40826,4407.7,4407.6,31.522]
[1756991249336,1.95246,4407.7,4407.6,31.522]
[1756991249739,1.95246,4407.7,4407.6,31.74742933]
[1756991251344,1.95246,4407.7,4407.6,33.29122718]
[1756991251743,1.95246,4407.7,4407.6,31.76962718]
[1756991252239,1.95246,4407.7,4407.6,31.78294232]
[1756991252739,1.95246,4407.7,4407.6,31.79625746]
[1756991255632,1.95246,4407.7,4407.6,31.5765726]
[1756991255838,1.95246,4407.7,4407.6,31.8095726]
[1756991256140,1.95246,4407.7,4407.6,31.82288774]
[1756991256542,1.95246,4407.7,4407.6,31.83620288]
[1756991256737,1.95246,4407.7,4407.6,31.01166288]
[1756991256937,4.00706,4407.7,4407.6,0.31420288]
[1756991257139,4.2076,4407.5,4407.4,0.9451]
[1756991257341,4.2076,4407.5,4407.4,1.1781]
[1756991257540,2.6634,4407.5,4407.4,0.233]
[1756991257743,4.2076,4407.5,4407.4,0.233]
[1756991259138,4.2076,4407.5,4407.4,2.1603]
[1756991259446,4.2076,4407.5,4407.4,2.17591256]
[1756991261344,4.2076,4407.5,4407.4,2.18387156]
[1756991261849,4.2076,4407.5,4407.4,2.19183056]
[1756991262550,4.2076,4407.5,4407.4,2.19978956]
[1756991262851,4.2076,4407.5,4407.4,2.20774856]
[1756991263849,4.2076,4407.5,4407.4,0.28044856]
[1756991264242,4.2076,4407.5,4407.4,1.29854856]
[1756991264649,4.2076,4407.5,4407.4,3.79264856]
[1756991264952,3.1986,4407.5,4407.4,3.79264856]
[1756991265552,3.60688,4407.5,4407.4,3.80535311]
[1756991265750,4.57498,4407.5,4407.4,2.30855311]
[1756991266453,4.57498,4407.5,4407.4,2.32125969]
[1756991267354,4.57498,4407.5,4407.4,2.33397954]
[1756991268543,4.57498,4407.5,4407.4,2.34669939]
[1756991270957,4.57498,4407.5,4407.4,2.35941924]
[1756991271553,4.57498,4407.5,4407.4,2.37213909]
[1756991271754,1.95248,4407.5,4407.4,3.86893909]
[1756991271948,0.40828,4407.5,4407.4,4.10854893]
[1756991272354,0.40828,4407.5,4407.4,4.12126878]
[1756991272754,0.40828,4407.5,4407.4,3.66137879]
[1756991272959,0.40828,4407.5,4407.4,3.89437879]
[1756991274855,1.96028,4407.5,4407.4,3.89437879]
[1756991275054,1.96028,4407.5,4407.4,3.90303087]
[1756991276254,0.40828,4407.5,4407.4,3.90303087]
[1756991276560,0.40828,4407.5,4407.4,3.91169915]
[1756991277761,1.96028,4407.5,4407.4,3.92036743]
[1756991277964,4.47918,4407.5,4407.4,2.42356743]
[1756991278162,3.88628,4407.5,4407.4,3.92036743]
[1756991278364,1.96028,4407.5,4407.4,3.92036743]
[1756991279258,0.40828,4407.5,4407.4,5.32140855]
[1756991279864,0.40828,4407.5,4407.4,5.33007683]
[1756991280266,1.13396,4407.7,4407.4,9.33007683]
[1756991280457,0.1133,4407.7,4407.6,4.63004112]
[1756991280650,3.478,4407.7,4407.6,3.28990974]
[1756991280850,3.478,4407.7,4407.6,0.19251195]
[1756991281056,3.478,4407.7,4407.6,0.42551195]
[1756991281758,3.478,4407.7,4407.6,1.44361195]
[1756991282155,6.6858,4407.7,4407.6,0.42551195]
[1756991282763,6.6858,4407.7,4407.6,0.43776426]
[1756991283575,6.6858,4407.7,4407.6,1.45586426]
[1756991283865,6.6858,4407.7,4407.6,0.45001657]
[1756991285656,6.6858,4407.7,4407.6,0.21701657]
[1756991285962,6.6858,4407.7,4407.6,1.4803848]
[1756991286665,6.6858,4407.7,4407.6,0.4622848]
[1756991286969,6.6858,4407.7,4407.6,0.2292848]
[1756991287158,6.6858,4407.7,4407.6,0.4622848]
[1756991287658,6.6858,4407.7,4407.6,0.47453711]
[1756991288554,6.6858,4407.7,4407.6,0.25064542]
[1756991288752,6.6858,4407.7,4407.6,0.48364542]
[1756991289170,1.552,4407.3,4407.2,2.03880974]
[1756991289354,3.88629,4407.3,4407.2,1.81536974]
[1756991289561,3.88629,4407.3,4407.2,0.233]
[1756991289762,3.478,4407.3,4407.2,0.233]
[1756991290157,3.478,4407.3,4407.2,2.2484]
[1756991290463,1.926,4406.9,4406.8,1.12427862]
[1756991290668,3.478,4406.9,4406.8,2.60751826]
[1756991290867,3.478,4406.9,4406.8,0.23213964]
[1756991291171,3.478,4406.9,4406.8,1.2511]
[1756991291859,3.478,4406.9,4406.8,1.2693191]
[1756991292764,3.478,4406.9,4406.8,1.0363191]
[1756991293068,3.478,4406.9,4406.8,1.2693191]
[1756991293573,1.552,4406.9,4406.8,3.70329669]
[1756991294366,1.552,4406.9,4406.8,3.71240025]
[1756991294566,3.5484,4406.9,4406.8,2.26910025]
[1756991294762,3.5484,4406.9,4406.8,2.51120381]
[1756991296065,2.554,4406.9,4406.8,3.72090381]
[1756991296265,2.554,4406.9,4406.8,4.84518243]
[1756991297067,2.554,4406.9,4406.8,4.85705219]
[1756991297762,2.96233,4406.9,4406.8,3.64735219]
[1756991298060,2.96233,4406.9,4406.8,4.85705219]
[1756991301069,2.96233,4406.9,4406.8,6.89447858]
[1756991301661,2.96233,4406.9,4406.8,4.85705219]
[1756991301968,2.96233,4406.9,4406.8,6.89447858]
[1756991302766,2.96233,4406.9,4406.8,5.68477858]
[1756991303768,2.96233,4406.9,4406.8,6.89447858]
[1756991304368,3.95673,4406.9,4406.8,5.68477858]
[1756991305272,3.95673,4406.9,4406.8,6.89447858]
[1756991305673,2.96233,4406.9,4406.8,6.89447858]
[1756991308273,2.96233,4406.9,4406.8,4.85705219]
[1756991309470,3.95673,4406.9,4406.8,0.04829598]
[1756991309664,3.95673,4406.9,4406.8,0.28129598]
[1756991310070,3.95673,4406.9,4406.8,0.50259255]
[1756991310675,3.95673,4406.9,4406.8,1.46259255]
[1756991311781,3.95673,4406.9,4406.8,0.28129598]
[1756991313179,3.95673,4406.9,4406.8,3.3573746]
[1756991313483,3.95673,4406.9,4406.8,1.4055746]
[1756991313678,3.95673,4406.9,4406.8,1.63449292]
[1756991314374,3.95673,4406.9,4406.8,0.04829598]
[1756991314578,3.95673,4406.9,4406.8,0.28129598]
[1756991318086,2.40474,4406.8,4406.7,1.4e-07]
[1756991318383,3.96696,4406.6,4406.5,2.9984289]
[1756991318683,3.96696,4406.6,4406.5,5.11450752]
[1756991318882,3.96696,4406.6,4406.5,5.12619577]
[1756991319083,3.96696,4406.6,4406.5,3.40739577]
[1756991319383,7.34760862,4406.6,4406.4,2.0384289]
[1756991319587,2.5771,4406.0,4405.6,3.2078]
[1756991319878,1.5622,4405.7,4405.6,3.2078]
[1756991320184,3.5586,4405.7,4405.6,3.4408]
[1756991320385,3.5586,4405.7,4405.6,3.66896377]
[1756991320786,3.5586,4405.7,4405.6,4.62896377]
[1756991320984,3.5586,4405.7,4405.6,8.02564239]
[1756991321186,3.5586,4405.7,4405.6,8.25864239]
[1756991322079,3.5586,4405.7,4405.6,8.02564239]
[1756991322387,1.002,4405.7,4405.6,8.25864239]
[1756991324086,3.5661,4405.7,4405.6,5.75324239]
[1756991324288,3.5661,4405.7,4405.6,8.22524239]
[1756991325375,1.002,4405.7,4405.6,8.22524239]
[1756991325580,0.40844,4405.7,4405.6,8.22524239]
[1756991325987,0.40844,4405.7,4405.6,7.99224239]
[1756991326185,0.40844,4405.7,4405.6,8.22524239]
[1756991326387,1.44224,4405.7,4405.6,7.99224239]
[1756991326588,4.00634,4405.7,4405.6,8.22524239]
[1756991327290,1.44224,4405.7,4405.6,8.22524239]
[1756991327589,2.99784,4405.7,4405.6,8.22524239]
[1756991327982,1.44224,4405.7,4405.6,8.22524239]
[1756991328191,2.99784,4405.7,4405.6,8.22524239]
[1756991328888,0.40844,4405.7,4405.6,8.22524239]
[1756991329185,0.40844,4405.7,4405.6,9.34952101]
[1756991329390,0.1133,4405.9,4405.6,9.57650101]
[1756991329586,1.02098,4406.3,4406.0,0.5807]
[1756991329888,5.7972,4407.1,4407.0,3.5171]
[1756991330088,6.8057,4407.1,4407.0,3.40827862]
[1756991330789,6.8057,4407.1,4407.0,4.87437862]
[1756991330987,6.8057,4407.1,4407.0,0.233]
[1756991331187,3.5979,4406.4,4406.3,1.0451]
[1756991331490,3.5979,4406.4,4406.3,1.2781]
[1756991331881,3.5979,4406.4,4406.3,2.7442]
[1756991332395,3.5979,4406.4,4406.3,1.2781]
[1756991332788,3.5979,4406.4,4406.3,3.7501]
[1756991333384,4.00626,4406.4,4406.3,3.7501]
[1756991334188,4.00626,4406.4,4406.3,1.48724]
[1756991334490,1.5556,4406.2,4405.9,3.15924343]
[1756991334687,2.66,4406.0,4405.9,4.20434343]
[1756991334990,4.2156,4406.0,4405.9,6.67634343]
[1756991335294,4.2156,4406.0,4405.9,6.90934343]
[1756991335686,3.5979,4406.0,4405.9,6.90934343]
[1756991335896,2.5894,4406.5,4406.4,2.051]
[1756991336086,2.5894,4406.5,4406.4,4.87437862]
[1756991336391,3.5979,4406.5,4406.4,4.87437862]
[1756991336791,4.2156,4406.5,4406.4,0.233]
[1756991337495,4.2156,4406.5,4406.4,4.87437862]
[1756991337900,4.2156,4406.5,4406.4,3.40827862]
[1756991338893,4.2156,4406.5,4406.4,0.233]
[1756991340190,4.2156,4406.5,4406.4,1.2781]
[1756991340397,4.2156,4406.5,4406.4,1.29696382]
[1756991340697,4.2156,4406.5,4406.4,3.76896382]
[1756991340892,1.5556,4406.5,4406.4,3.76896382]
[1756991341292,2.5894,4406.5,4406.4,3.76896382]
[1756991341494,3.2078,4407.2,4406.8,2.051]
[1756991341693,3.2078,4407.2,4406.9,3.7501]
[1756991341694,2.5894,4407.0,4406.9,3.7501]
[1756991342093,2.9977,4407.0,4406.9,3.7501]
[1756991342401,2.9977,4407.0,4406.9,3.76896382]
[1756991342603,4.0062,4407.0,4406.9,3.76896382]
[1756991342899,4.0062,4407.0,4406.9,4.89324244]
[1756991343099,4.0062,4407.0,4406.9,4.90267317]
[1756991343304,4.0062,4407.0,4406.9,4.9121039]
[1756991343495,4.6239,4407.0,4406.9,3.78782528]
[1756991343697,6.02495892,4407.0,4406.9,0.03772528]
[1756991343901,4.6239,4407.0,4406.9,0.27072528]
[1756991344900,4.6239,4407.0,4406.9,0.28016928]
[1756991346606,4.6239,4407.0,4406.9,0.29172808]
[1756991347513,4.6239,4407.0,4406.9,0.30328688]
[1756991347812,4.6239,4407.0,4406.9,1.34838688]
[1756991349007,4.6239,4407.0,4406.9,2.35428688]
[1756991349207,4.6239,4407.0,4406.9,3.83194568]
[1756991349208,2.5816,4407.0,4406.9,3.83194568]
[1756991349411,4.6239,4407.0,4406.9,3.83194568]
[1756991349613,4.6239,4407.0,4406.9,2.37740448]
[1756991349807,4.6239,4407.0,4406.9,3.84350448]
[1756991350206,4.6239,4407.0,4406.9,3.85506328]
[1756991350814,4.6239,4407.0,4406.9,3.86662208]
[1756991351213,4.6239,4407.0,4406.9,3.87818088]
[1756991351608,4.6239,4407.0,4406.9,3.7501]